bitfinex/quotes_BTCUSD_20251213
["timestamp","ask_amount","ask_price","bid_price","bid_amount"]
[1765625421604,0.08617888,90520.0,90519.0,0.00262417]
[1765625422208,0.08617888,90520.0,90519.0,0.00362417]
[1765625422604,0.08436888,90520.0,90519.0,0.00362417]
[1765625422808,0.08436888,90520.0,90519.0,0.00162417]
[1765625423013,0.04118088,90520.0,90519.0,0.00262417]
[1765625427584,0.04299088,90520.0,90519.0,0.00262417]
[1765625428666,0.04118088,90520.0,90519.0,0.00262417]
[1765625429427,0.35109088,90520.0,90519.0,0.00262417]
[1765625429632,0.36141302,90520.0,90519.0,0.00262417]
[1765625429838,0.36141302,90520.0,90510.0,0.0004]
[1765625429839,0.22096761,90511.0,90510.0,0.0004]
[1765625430042,0.30490295,90511.0,90510.0,0.0004]
[1765625430374,0.22099203,90501.0,90500.0,0.0004]
[1765625430554,0.22280203,90501.0,90500.0,0.0004]
[1765625430750,0.22461203,90501.0,90500.0,0.0004]
[1765625430952,0.22469275,90501.0,90500.0,0.0004]
[1765625431153,0.25788738,90501.0,90500.0,0.0004]
[1765625431357,0.30107538,90501.0,90500.0,0.0004]
[1765625432195,0.30107538,90501.0,90500.0,0.0024]
[1765625432597,0.30107538,90501.0,90500.0,0.0014]
[1765625433394,0.30107538,90501.0,90500.0,0.0004]
[1765625437743,0.31847538,90501.0,90500.0,0.0004]
[1765625438927,0.31947538,90501.0,90500.0,0.0004]
[1765625440254,0.27628738,90501.0,90500.0,0.0004]
[1765625440458,0.31947538,90501.0,90500.0,0.00096491]
[1765625440663,0.56538972,90501.0,90500.0,0.00096491]
[1765625441692,0.28018969,90501.0,90500.0,0.00257778]
[1765625441907,0.24699506,90501.0,90500.0,0.26278225]
[1765625442873,0.24599506,90501.0,90500.0,0.26278225]
[1765625443079,0.24599506,90501.0,90500.0,0.26378225]
[1765625444275,0.24599506,90501.0,90500.0,0.26478225]
[1765625444474,0.24599506,90501.0,90500.0,0.29797108]
[1765625461280,0.24599506,90501.0,90500.0,0.34117108]
[1765625461850,0.24599506,90501.0,90500.0,0.29797108]
[1765625462245,0.24599506,90501.0,90500.0,0.34117108]
[1765625462546,0.24599506,90501.0,90500.0,0.29797108]
[1765625462748,0.24599506,90501.0,90500.0,0.34017108]
[1765625463181,0.24599506,90501.0,90500.0,0.34217108]
[1765625464497,0.24599506,90501.0,90500.0,0.34117108]
[1765625464869,0.24599506,90501.0,90500.0,0.34317108]
[1765625467226,8.072e-05,90501.0,90500.0,0.34317108]
[1765625468341,8.072e-05,90501.0,90500.0,0.29997108]
[1765625468514,8.072e-05,90501.0,90500.0,0.34317108]
[1765625478862,8.072e-05,90501.0,90500.0,0.29997108]
[1765625484882,8.072e-05,90501.0,90500.0,0.26678225]
[1765625493150,8.072e-05,90501.0,90500.0,0.30998225]
[1765625498125,8.072e-05,90501.0,90500.0,0.26678225]
[1765625498359,8.072e-05,90501.0,90500.0,0.30998225]
[1765625498576,8.072e-05,90501.0,90500.0,0.34316462]
[1765625499174,8.072e-05,90501.0,90500.0,0.34116462]
[1765625499373,8.072e-05,90501.0,90500.0,0.34616462]
[1765625499570,8.072e-05,90501.0,90500.0,0.34416462]
[1765625499995,8.072e-05,90501.0,90500.0,0.34916462]
[1765625507597,3.067e-05,90501.0,90500.0,0.34916462]
[1765625547818,3.067e-05,90501.0,90500.0,0.30596462]
[1765625548071,3.067e-05,90501.0,90500.0,0.34916462]
[1765625549446,3.067e-05,90501.0,90500.0,0.34416462]
[1765625549757,3.067e-05,90501.0,90500.0,0.29896462]
[1765625549968,3.067e-05,90501.0,90500.0,0.30196462]
[1765625550171,3.067e-05,90501.0,90500.0,0.36164]
[1765625550736,3.067e-05,90501.0,90500.0,0.31936462]
[1765625552548,3.067e-05,90501.0,90500.0,0.31636462]
[1765625552991,3.067e-05,90501.0,90500.0,0.31836462]
[1765625553187,3.067e-05,90501.0,90500.0,0.31536462]
[1765625553629,3.067e-05,90501.0,90500.0,0.31836462]
[1765625554216,3.067e-05,90501.0,90500.0,0.36156462]
[1765625554425,3.067e-05,90501.0,90500.0,0.31836462]
[1765625556067,3.067e-05,90501.0,90500.0,0.28518225]
[1765625556445,3.067e-05,90501.0,90500.0,0.31836876]
[1765625556881,3.067e-05,90501.0,90500.0,0.28518225]
[1765625557107,3.067e-05,90501.0,90500.0,0.31836876]
[1765625557319,3.067e-05,90501.0,90500.0,0.28518225]
[1765625558479,3.067e-05,90501.0,90500.0,0.29536313]
[1765625559387,3.067e-05,90501.0,90500.0,0.22857225]
[1765625560104,3.067e-05,90501.0,90500.0,0.00757778]
[1765625560800,3.067e-05,90501.0,90500.0,0.00457778]
[1765625561981,3.067e-05,90501.0,90500.0,0.00257778]
[1765625562197,3.067e-05,90501.0,90500.0,0.00457778]
[1765625564388,0.00365067,90501.0,90500.0,0.00296491]
[1765625565161,0.00184067,90501.0,90500.0,0.00196491]
[1765625565368,0.00184067,90501.0,90500.0,0.00096491]
[1765625566395,0.01289076,90501.0,90500.0,0.00096491]
[1765625567586,0.01470076,90501.0,90500.0,0.00096491]
[1765625570037,0.05788876,90501.0,90500.0,0.00096491]
[1765625570222,0.01470076,90501.0,90500.0,0.00096491]
[1765625572148,0.05788876,90501.0,90500.0,0.00096491]
[1765625572721,0.01470076,90501.0,90500.0,0.00096491]
[1765625577319,0.30540076,90501.0,90500.0,0.00096491]
[1765625579810,0.34858876,90501.0,90500.0,0.00096491]
[1765625580289,0.30540076,90501.0,90500.0,0.00096491]
[1765625580865,0.34858876,90501.0,90500.0,0.00096491]
[1765625581848,0.30540076,90501.0,90500.0,0.00096491]
[1765625582116,0.34858876,90501.0,90500.0,0.00096491]
[1765625583043,0.5945031,90501.0,90500.0,0.00096491]
[1765625583868,0.5513151,90501.0,90500.0,0.00096491]
[1765625584440,0.5945031,90501.0,90500.0,0.00096491]
[1765625584639,0.61824676,90501.0,90500.0,0.00096491]
[1765625584895,0.61824657,90501.0,90500.0,0.00096491]
[1765625586035,0.61924657,90501.0,90500.0,0.00096491]
[1765625586947,0.62024657,90501.0,90500.0,0.00096491]
[1765625587305,0.57705857,90501.0,90500.0,0.00096491]
[1765625587508,0.22101401,90492.0,90490.0,0.0004]
[1765625587711,0.02939088,90491.0,90490.0,0.0004]
[1765625587917,0.03120088,90491.0,90490.0,0.0004]
[1765625588709,0.06439738,90491.0,90490.0,0.0004]
[1765625590105,0.35147738,90491.0,90490.0,0.0004]
[1765625590362,0.02758088,90491.0,90490.0,0.0004]
[1765625591084,0.02758088,90491.0,90490.0,0.0014]
[1765625591216,0.02858088,90491.0,90490.0,0.0004]
[1765625591624,0.02958088,90491.0,90490.0,0.0004]
[1765625592676,0.36708888,90491.0,90490.0,0.0004]
[1765625593264,0.32390088,90491.0,90490.0,0.0004]
[1765625593491,0.32390088,90491.0,90490.0,0.00069739]
[1765625597779,0.002,90491.0,90490.0,0.26333915]
[1765625598112,0.002,90491.0,90490.0,0.27439082]
[1765625598735,0.001,90491.0,90490.0,0.27439082]
[1765625599157,0.001,90491.0,90490.0,0.27539082]
[1765625599539,0.02758088,90500.0,90499.0,0.22099691]
[1765625600767,0.02858088,90500.0,90499.0,0.22099691]
[1765625601090,0.02958088,90500.0,90499.0,0.22099691]
[1765625602636,0.01105021,90496.0,90490.0,0.00231026]
[1765625602846,0.00181,90491.0,90490.0,0.01174833]
[1765625604899,0.2907,90497.0,90493.0,0.22101156]
[1765625605098,0.02758088,90500.0,90497.0,0.01105009]
[1765625605400,0.31828088,90500.0,90497.0,0.01105009]
[1765625605578,0.31828088,90500.0,90497.0,0.23205005]
[1765625606192,0.31928088,90500.0,90497.0,0.23205005]
[1765625606385,0.31928088,90500.0,90498.0,0.22099746]
[1765625606713,0.32028088,90500.0,90498.0,0.22099746]
[1765625607006,0.53661434,90499.0,90498.0,0.22099746]
[1765625607624,0.24591434,90499.0,90498.0,0.22099746]
[1765625608412,0.24772434,90499.0,90494.0,0.01105045]
[1765625608619,0.00181,90495.0,90492.0,0.2323004]
[1765625608820,0.043188,90497.0,90492.0,0.2323004]
[1765625608821,0.00181,90493.0,90492.0,0.2323004]
[1765625609406,0.2907,90495.0,90492.0,0.2323004]
[1765625609917,0.2907,90495.0,90494.0,0.22100912]
[1765625609918,0.2917,90495.0,90494.0,0.22100912]
[1765625610238,0.2907,90495.0,90494.0,0.22100912]
[1765625610481,0.2907,90498.0,90495.0,0.22100489]
[1765625611374,0.2907,90498.0,90495.0,0.23205522]
[1765625612662,0.2917,90498.0,90495.0,0.23205522]
[1765625613206,0.30274996,90498.0,90494.0,0.01105045]
[1765625613657,0.30274996,90498.0,90495.0,0.01105033]
[1765625614030,0.2917,90498.0,90495.0,0.01105033]
[1765625625094,0.2917,90498.0,90496.0,0.22100424]
[1765625625943,0.22101156,90493.0,90492.0,0.00023791]
[1765625626187,0.22282156,90493.0,90492.0,0.00023791]
[1765625626354,0.00362,90493.0,90492.0,0.00023791]
[1765625627418,0.00281,90493.0,90492.0,0.00023791]
[1765625628071,0.00381,90493.0,90492.0,0.00023791]
[1765625628275,0.00181,90493.0,90492.0,0.00023791]
[1765625628669,0.00281,90493.0,90492.0,0.00023791]
[1765625636167,0.00462,90493.0,90492.0,0.00023791]
[1765625639649,0.00281,90493.0,90492.0,0.00023791]
[1765625640397,0.00462,90493.0,90492.0,0.00023791]
[1765625640521,0.047808,90493.0,90492.0,0.00023791]
[1765625640717,0.00462,90493.0,90492.0,0.00023791]
[1765625641671,0.047808,90493.0,90492.0,0.00023791]
[1765625642885,0.00462,90493.0,90492.0,0.00023791]
[1765625643086,0.047808,90493.0,90492.0,0.00023791]
[1765625649666,0.00462,90493.0,90492.0,0.00023791]
[1765625662275,0.11512762,90493.0,90492.0,0.00023791]
[1765625662443,0.00462,90493.0,90492.0,0.00023791]
[1765625662867,0.047808,90493.0,90492.0,0.00023791]
[1765625663247,0.00462,90493.0,90492.0,0.00023791]
[1765625663449,0.047808,90493.0,90492.0,0.00023791]
[1765625666275,0.29814882,90493.0,90492.0,0.00023791]
[1765625672777,0.25496082,90493.0,90492.0,0.00023791]
[1765625679211,0.25134082,90493.0,90492.0,0.00023791]
[1765625679546,0.26435434,90493.0,90492.0,0.00023791]
[1765625679892,0.26616434,90493.0,90492.0,0.00023791]
[1765625680741,0.3039159,90493.0,90492.0,0.00023791]
[1765625686304,0.3057259,90493.0,90492.0,0.00023791]
[1765625687947,0.3039159,90493.0,90492.0,0.00023791]
[1765625689163,0.3057259,90493.0,90492.0,0.00023791]
[1765625693032,0.3039159,90493.0,90492.0,0.00023791]
[1765625695359,0.3021059,90493.0,90492.0,0.00023791]
[1765625696290,0.3039159,90493.0,90492.0,0.00023791]
[1765625697102,0.3057259,90493.0,90492.0,0.00023791]
[1765625697367,0.3039159,90493.0,90492.0,0.00023791]
[1765625698400,0.3021059,90493.0,90492.0,0.00023791]
[1765625701791,0.3021059,90493.0,90492.0,0.01649791]
[1765625701995,0.2846659,90493.0,90492.0,0.03912791]
[1765625702945,0.2846659,90493.0,90492.0,0.01649791]
[1765625703497,0.2846659,90493.0,90492.0,0.03912791]
[1765625704542,0.2836659,90493.0,90492.0,0.03912791]
[1765625704887,0.2846659,90493.0,90492.0,0.03912791]
[1765625707505,0.2846659,90493.0,90492.0,0.04074078]
[1765625711678,0.2846659,90493.0,90492.0,0.07393398]
[1765625717095,0.2836659,90493.0,90492.0,0.07393398]
[1765625717936,0.2836659,90493.0,90492.0,0.07493398]
[1765625718673,0.2836659,90493.0,90492.0,0.07693398]
[1765625719465,0.2836659,90493.0,90492.0,0.08824398]
[1765625719872,0.2836659,90493.0,90492.0,0.11034538]
[1765625727791,0.2836659,90493.0,90492.0,0.08824398]
[1765625729399,0.2836659,90493.0,90492.0,0.11034538]
[1765625730454,0.2836659,90493.0,90492.0,0.08824398]
[1765625731313,0.2836659,90493.0,90492.0,0.11034538]
[1765625731708,0.2836659,90493.0,90492.0,0.08824398]
[1765625736023,0.2836659,90493.0,90492.0,0.08624398]
[1765625742052,0.2836659,90493.0,90492.0,0.10834538]
[1765625744783,0.2836659,90493.0,90492.0,0.08624398]
[1765625746075,0.2836659,90493.0,90492.0,0.10834538]
[1765625747130,0.2836659,90493.0,90492.0,0.08624398]
[1765625748821,0.2836659,90493.0,90492.0,0.10834538]
[1765625756336,0.2836659,90493.0,90492.0,0.08624398]
[1765625758963,0.2836659,90493.0,90492.0,0.10834538]
[1765625761350,0.03775156,90493.0,90492.0,0.08624398]
[1765625762187,0.03775156,90493.0,90492.0,0.10834538]
[1765625762856,0.03775156,90493.0,90492.0,0.15154538]
[1765625763078,0.03775156,90493.0,90492.0,0.10834538]
[1765625768784,0.03775156,90493.0,90492.0,0.08624398]
[1765625769138,0.03775156,90493.0,90492.0,0.10834538]
[1765625772917,0.03775156,90493.0,90492.0,0.08624398]
[1765625785981,0.03775156,90493.0,90492.0,0.15154538]
[1765625786187,0.03775156,90493.0,90492.0,0.12944398]
[1765625788312,0.03775156,90493.0,90492.0,0.15154538]
[1765625790330,0.03775156,90493.0,90492.0,0.44224538]
[1765625790507,0.03775156,90493.0,90492.0,0.42014398]
[1765625791492,0.03775156,90493.0,90492.0,0.47981053]
[1765625792011,0.03775156,90493.0,90492.0,0.42014398]
[1765625794044,0.03775156,90493.0,90492.0,0.41914398]
[1765625794254,0.03775156,90493.0,90492.0,0.42014398]
[1765625794459,0.03775156,90493.0,90492.0,0.42114398]
[1765625794879,0.03775156,90493.0,90492.0,0.42214398]
[1765625795211,0.03775156,90493.0,90492.0,0.48478019]
[1765625798916,0.03775156,90493.0,90492.0,0.44158019]
[1765625799165,0.03775156,90493.0,90492.0,0.48478019]
[1765625799843,0.03775156,90493.0,90492.0,0.44158019]
[1765625799977,0.03775156,90493.0,90492.0,0.48478019]
[1765625802311,0.03775156,90493.0,90492.0,0.42514398]
[1765625802927,3.067e-05,90501.0,90498.0,0.01104996]
[1765625803127,3.067e-05,90501.0,90500.0,0.02885]
[1765625803673,3.067e-05,90501.0,90500.0,0.08553585]
[1765625804457,3.067e-05,90501.0,90500.0,0.08653585]
[1765625804975,3.067e-05,90501.0,90500.0,0.08853585]
[1765625806165,3.067e-05,90501.0,90500.0,0.08553585]
[1765625806366,3.067e-05,90501.0,90500.0,0.08653585]
[1765625828291,3.067e-05,90501.0,90500.0,0.06303585]
[1765625828587,3.067e-05,90501.0,90500.0,0.28403032]
[1765625828891,3.067e-05,90501.0,90500.0,0.30708032]
[1765625864255,3.067e-05,90501.0,90500.0,0.03418585]
[1765625864585,3.067e-05,90501.0,90500.0,0.001]
[1765625864586,0.04321867,90501.0,90500.0,0.001]
[1765625866187,0.04321867,90501.0,90500.0,0.22199447]
[1765625867679,3.067e-05,90501.0,90500.0,0.22199447]
[1765625879861,0.00184067,90501.0,90500.0,0.001]
[1765625880064,0.58345301,90501.0,90500.0,0.001]
[1765625880265,0.61166027,90501.0,90500.0,0.001]
[1765625880867,0.043188,90493.0,90492.0,0.00023791]
[1765625881216,0.23205914,90495.0,90493.0,0.03482]
[1765625881413,0.22100624,90496.0,90494.0,0.01506]
[1765625881629,0.22100624,90496.0,90494.0,0.03835]
[1765625882030,0.22100624,90496.0,90494.0,0.01506]
[1765625882398,0.043188,90493.0,90492.0,0.00023791]
[1765625882607,0.044998,90493.0,90492.0,0.00023791]
[1765625882800,0.046808,90493.0,90492.0,0.00023791]
[1765625883213,0.0512346,90493.0,90492.0,0.00023791]
[1765625884391,0.0522346,90493.0,90492.0,0.00023791]
[1765625885046,0.0090466,90493.0,90492.0,0.00023791]
[1765625885253,0.0522346,90493.0,90492.0,0.00023791]
[1765625885822,0.29814894,90493.0,90492.0,0.00023791]
[1765625894060,0.25315094,90493.0,90492.0,0.00023791]
[1765625894566,0.29633894,90493.0,90492.0,0.00023791]
[1765625896338,0.29814894,90493.0,90492.0,0.00023791]
[1765625900553,0.29633894,90493.0,90492.0,0.00023791]
[1765625903694,0.54566094,90493.0,90492.0,0.00023791]
[1765625903892,0.58884894,90493.0,90492.0,0.00023791]
[1765625908040,0.54566094,90493.0,90492.0,0.00023791]
[1765625908240,0.25315094,90493.0,90492.0,0.00023791]
[1765625908446,0.29372234,90493.0,90492.0,0.00023791]
[1765625911191,0.29191234,90493.0,90492.0,0.00023791]
[1765625914106,0.29372234,90493.0,90492.0,0.00023791]
[1765625914654,0.29191234,90493.0,90492.0,0.00023791]
[1765625916049,0.25053434,90493.0,90492.0,0.00023791]
[1765625916348,0.29372234,90493.0,90492.0,0.00023791]
[1765625923063,0.25053434,90493.0,90492.0,0.00023791]
[1765625927561,0.24872434,90493.0,90492.0,0.00023791]
[1765625928332,0.29372234,90493.0,90492.0,0.00023791]
[1765625933169,0.25053434,90493.0,90492.0,0.00023791]
[1765625933369,0.29372234,90493.0,90492.0,0.00023791]
[1765625934520,0.25053434,90493.0,90492.0,0.00023791]
[1765625935970,0.29372234,90493.0,90492.0,0.00023791]
[1765625939124,0.25053434,90493.0,90492.0,0.00023791]
[1765625944612,0.29372234,90493.0,90492.0,0.00023791]
[1765625945738,0.24691434,90493.0,90492.0,0.00023791]
[1765625950361,0.24691434,90493.0,90492.0,0.00185078]
[1765625952606,0.24635856,90493.0,90492.0,0.00185078]
[1765625953249,0.24635856,90493.0,90492.0,0.02553078]
[1765625953451,0.24635856,90493.0,90492.0,0.00185078]
[1765625958603,0.24635856,90493.0,90492.0,0.04173078]
[1765625960413,0.24635856,90493.0,90492.0,0.01805078]
[1765625965241,0.24635856,90493.0,90492.0,0.00185078]
[1765625968599,0.80487812,90493.0,90492.0,0.00023791]
[1765625985795,0.81592955,90493.0,90492.0,0.00023791]
[1765625990162,0.77274155,90493.0,90492.0,0.00023791]
[1765625992566,0.81592955,90493.0,90492.0,0.00023791]
[1765625993552,0.77274155,90493.0,90492.0,0.00023791]
[1765625995721,0.81592955,90493.0,90492.0,0.00023791]
[1765625998920,0.83974727,90493.0,90492.0,0.00023791]
[1765626008760,0.81592955,90493.0,90492.0,0.00023791]
[1765626009001,0.83973895,90493.0,90492.0,0.00023791]
[1765626009315,0.81592955,90493.0,90492.0,0.00023791]
[1765626009481,0.80487812,90493.0,90492.0,0.00023791]
[1765626009677,0.76169012,90493.0,90492.0,0.00023791]
[1765626013989,0.80487812,90493.0,90492.0,0.00023791]
[1765626016838,0.82868692,90493.0,90492.0,0.00023791]
[1765626017140,0.83311307,90493.0,90492.0,0.00023791]
[1765626018041,0.78992507,90493.0,90492.0,0.00023791]
[1765626018247,0.83311307,90493.0,90492.0,0.00023791]
[1765626024119,0.55490445,90491.0,90490.0,0.0004]
[1765626024331,0.26422155,90484.0,90483.0,0.00069695]
[1765626024608,0.29361243,90484.0,90483.0,0.00069695]
[1765626024782,0.29984916,90484.0,90483.0,0.00069695]
[1765626027409,0.30084916,90484.0,90483.0,0.00069695]
[1765626028176,0.29642243,90484.0,90483.0,0.00069695]
[1765626029714,0.29642243,90484.0,90483.0,0.00096463]
[1765626033422,0.25323443,90484.0,90483.0,0.00096463]
[1765626033625,0.29642243,90484.0,90483.0,0.00096463]
[1765626034478,0.54233677,90484.0,90483.0,0.00096463]
[1765626046287,0.5467635,90484.0,90483.0,0.00096463]
[1765626049119,0.5467635,90484.0,90460.0,0.0004]
[1765626049120,0.22108697,90463.0,90460.0,0.0004]
[1765626049334,0.044998,90461.0,90460.0,0.0004]
[1765626049786,0.046808,90461.0,90460.0,0.0004]
[1765626050190,0.046808,90461.0,90460.0,0.00050233]
[1765626050615,0.046808,90461.0,90460.0,0.00150233]
[1765626050995,0.046808,90461.0,90460.0,0.00250233]
[1765626051218,0.07438888,90461.0,90460.0,2.33e-06]
[1765626051395,0.22111146,90453.0,90450.0,0.01145534]
[1765626051596,0.00181,90451.0,90450.0,0.01184205]
[1765626051805,0.00362,90451.0,90450.0,0.00078671]
[1765626052003,0.00362,90451.0,90445.0,0.03320929]
[1765626052194,0.00181,90449.0,90448.0,0.22112152]
[1765626053507,0.00181,90449.0,90448.0,0.22412152]
[1765626054102,0.00181,90449.0,90448.0,0.22612152]
[1765626054801,0.0003857,90451.0,90450.0,0.22111663]
[1765626055010,0.0003857,90451.0,90450.0,0.2227295]
[1765626056426,0.0003857,90451.0,90450.0,0.2247295]
[1765626056640,0.0003857,90451.0,90450.0,0.2267295]
[1765626060505,0.0003857,90451.0,90450.0,0.2277114]
[1765626086829,0.0003857,90451.0,90450.0,0.2523814]
[1765626087204,0.0003857,90451.0,90450.0,0.2277114]
[1765626089350,0.0003857,90451.0,90450.0,0.2523814]
[1765626089748,0.0003857,90451.0,90450.0,0.2678714]
[1765626091782,0.0003857,90451.0,90450.0,0.2432014]
[1765626094412,0.0435737,90451.0,90450.0,0.2277114]
[1765626095165,0.0003857,90451.0,90450.0,0.00659477]
[1765626096516,0.0435737,90451.0,90450.0,0.00659477]
[1765626097015,0.2947057,90451.0,90450.0,0.0049819]
[1765626097217,0.3378937,90451.0,90450.0,0.0049819]
[1765626097973,0.3378937,90451.0,90450.0,0.0029819]
[1765626098368,0.3388937,90451.0,90450.0,0.0029819]
[1765626098804,0.2957057,90451.0,90450.0,0.0009819]
[1765626099198,0.2967057,90451.0,90450.0,0.0009819]
[1765626099638,0.3398937,90451.0,90450.0,0.0009819]
[1765626100640,0.3573337,90451.0,90450.0,0.0009819]
[1765626104986,0.3123357,90451.0,90450.0,0.0009819]
[1765626105371,0.3141457,90451.0,90450.0,0.0009819]
[1765626106070,0.3131457,90451.0,90450.0,0.0009819]
[1765626106437,0.3141457,90451.0,90450.0,0.0009819]
[1765626107614,0.3131457,90451.0,90450.0,0.0009819]
[1765626107991,0.3141457,90451.0,90450.0,0.0009819]
[1765626112471,0.3573337,90451.0,90450.0,0.0009819]
[1765626113839,0.3141457,90451.0,90450.0,0.0009819]
[1765626114509,0.3573337,90451.0,90450.0,0.0009819]
[1765626119638,0.3141457,90451.0,90450.0,0.0009819]
[1765626119816,0.3573337,90451.0,90450.0,0.0009819]
[1765626120634,0.3141457,90451.0,90450.0,0.0009819]
[1765626120835,0.3573337,90451.0,90450.0,0.0009819]
[1765626131467,0.42465332,90451.0,90450.0,0.0009819]
[1765626131638,0.043188,90441.0,90440.0,0.0024]
[1765626131829,0.044998,90441.0,90440.0,0.0024]
[1765626132021,0.046808,90441.0,90440.0,0.00269763]
[1765626133039,0.046808,90441.0,90440.0,0.00369763]
[1765626133268,0.00362,90441.0,90440.0,0.00369763]
[1765626133471,0.046808,90441.0,90440.0,0.00369763]
[1765626133676,0.046808,90441.0,90440.0,0.00469763]
[1765626134473,0.046808,90441.0,90440.0,0.00369763]
[1765626134674,0.046808,90441.0,90440.0,0.00269763]
[1765626135100,0.07438888,90441.0,90440.0,0.00269763]
[1765626136899,0.09182888,90441.0,90440.0,0.00269763]
[1765626138401,0.09182888,90441.0,90413.0,9e-05]
[1765626138402,0.01105876,90426.0,90413.0,9e-05]
[1765626138647,0.26618555,90421.0,90413.0,9e-05]
[1765626139137,0.26799555,90421.0,90413.0,9e-05]
[1765626139545,0.23862755,90421.0,90420.0,0.00399543]
[1765626139750,0.24043755,90421.0,90420.0,0.00409768]
[1765626139946,0.24043755,90421.0,90420.0,0.00709768]
[1765626140197,0.24224755,90421.0,90420.0,0.00409768]
[1765626140371,0.24224755,90421.0,90420.0,0.00109768]
[1765626140753,0.24043755,90421.0,90420.0,0.00109768]
[1765626141463,0.24224755,90421.0,90420.0,0.00109768]
[1765626145330,0.24224755,90421.0,90409.0,0.00976923]
[1765626145331,0.01106035,90413.0,90409.0,0.00976923]
[1765626145505,0.043188,90410.0,90409.0,0.00981928]
[1765626146096,0.01106035,90413.0,90409.0,0.03194097]
[1765626146234,0.23227098,90412.0,90409.0,0.02217174]
[1765626146629,0.23227098,90412.0,90411.0,0.000268]
[1765626147530,0.52478098,90412.0,90411.0,0.000268]
[1765626147732,0.56615898,90412.0,90411.0,0.000268]
[1765626148367,0.52297098,90412.0,90411.0,0.000268]
[1765626148676,0.52297098,90412.0,90411.0,0.001268]
[1765626153579,0.56796898,90412.0,90411.0,0.001268]
[1765626153984,0.52478098,90412.0,90411.0,0.001268]
[1765626154959,0.52478098,90412.0,90411.0,0.000268]
[1765626155280,0.56796898,90412.0,90411.0,0.000268]
[1765626156352,0.52297098,90412.0,90411.0,0.000268]
[1765626156524,0.30176047,90412.0,90411.0,0.000268]
[1765626157147,0.25985048,90413.0,90411.0,0.26238763]
[1765626157148,0.02758088,90413.0,90411.0,0.26238763]
[1765626157369,0.02758088,90413.0,90412.0,0.06303095]
[1765626157510,0.02758088,90413.0,90412.0,0.04091]
[1765626158209,0.02758088,90413.0,90411.0,0.2228225]
[1765626158210,0.02758088,90413.0,90411.0,0.00161287]
[1765626159052,0.02758088,90413.0,90412.0,0.001]
[1765626160126,0.02758088,90413.0,90411.0,0.00161287]
[1765626160331,0.02758088,90413.0,90411.0,0.22282374]
[1765626160513,0.02758088,90413.0,90412.0,0.001]
[1765626161767,0.02758088,90413.0,90412.0,0.002]
[1765626162768,0.02758088,90413.0,90412.0,0.00223822]
[1765626168387,0.02939088,90413.0,90412.0,0.00223822]
[1765626168782,0.07438888,90413.0,90412.0,0.00223822]
[1765626169613,0.07438888,90413.0,90412.0,0.00123822]
[1765626169811,0.07438888,90413.0,90412.0,0.00023822]
[1765626171731,0.02939088,90413.0,90412.0,0.00023822]
[1765626173415,0.03120088,90413.0,90412.0,0.00023822]
[1765626173581,0.02939088,90413.0,90412.0,0.00023822]
[1765626179018,0.02758088,90413.0,90412.0,0.00023822]
[1765626180998,0.02758088,90413.0,90412.0,0.04072109]
[1765626181615,0.02758088,90413.0,90412.0,0.01727109]
[1765626181797,0.02758088,90413.0,90412.0,0.00185109]
[1765626186548,0.02758088,90420.0,90419.0,0.01105962]
[1765626187573,0.02758088,90420.0,90419.0,0.23225206]
[1765626188470,0.02758088,90420.0,90419.0,0.23386493]
[1765626189894,0.02758088,90420.0,90419.0,0.25731493]
[1765626191240,0.24591434,90425.0,90424.0,0.22118021]
[1765626191443,0.24591434,90425.0,90422.0,0.23224253]
[1765626191699,0.02758088,90423.0,90422.0,0.23224253]
[1765626192665,0.24591434,90425.0,90422.0,0.23224253]
[1765626192666,0.23220761,90437.0,90432.0,0.01105803]
[1765626192885,0.02758088,90435.0,90432.0,0.01105803]
[1765626193088,0.02758088,90435.0,90432.0,0.2322166]
[1765626193264,0.02758088,90435.0,90432.0,0.01105803]
[1765626193466,0.02758088,90435.0,90432.0,0.23221701]
[1765626193890,0.02758088,90435.0,90433.0,0.22115602]
[1765626194731,0.02858088,90435.0,90433.0,0.22115602]
[1765626194912,0.02958088,90435.0,90433.0,0.22115602]
[1765626195093,0.02858088,90435.0,90433.0,0.24460602]
[1765626195290,0.02958088,90435.0,90433.0,0.24460602]
[1765626195489,0.02958088,90435.0,90433.0,0.22115602]
[1765626197520,0.02858088,90435.0,90433.0,0.22115602]
[1765626197725,0.02858088,90435.0,90432.0,0.23221701]
[1765626197726,0.02758088,90435.0,90432.0,0.01105803]
[1765626197943,0.24873423,90435.0,90432.0,0.01105803]
[1765626198183,0.01105778,90434.0,90429.0,0.00605839]
[1765626198464,0.01105791,90433.0,90429.0,0.00605839]
[1765626199563,0.04863168,90433.0,90429.0,0.00605839]
[1765626200371,0.04863168,90433.0,90429.0,0.22722452]
[1765626200670,0.04863168,90433.0,90429.0,0.22822452]
[1765626201081,0.04863168,90433.0,90429.0,0.00805839]
[1765626202239,0.23221893,90432.0,90429.0,0.002]
[1765626202773,0.01105803,90432.0,90429.0,0.002]
[1765626203332,0.01105803,90432.0,90429.0,0.001]
[1765626203551,0.23222054,90432.0,90429.0,0.002]
[1765626203770,0.01105803,90432.0,90429.0,0.002]
[1765626203970,0.04863168,90433.0,90430.0,0.01105827]
[1765626204981,0.04863168,90433.0,90430.0,0.01205827]
[1765626205179,0.04863168,90433.0,90430.0,0.01305827]
[1765626205575,0.04863168,90433.0,90430.0,0.002]
[1765626206384,0.22116065,90432.0,90430.0,0.002]
[1765626206582,0.04863168,90433.0,90430.0,0.002]
[1765626207001,0.22116289,90432.0,90430.0,0.002]
[1765626207184,0.22116289,90432.0,90430.0,0.001]
[1765626207779,0.23222092,90432.0,90428.0,0.01105852]
[1765626207985,0.23222092,90432.0,90430.0,0.001]
[1765626208180,0.23222092,90432.0,90430.0,0.002]
[1765626208385,0.01105803,90432.0,90430.0,0.002]
[1765626209239,0.01105803,90432.0,90430.0,0.001]
[1765626210007,0.26979159,90433.0,90430.0,0.001]
[1765626210216,0.26979141,90433.0,90430.0,0.001]
[1765626210417,0.26979141,90433.0,90430.0,0.002]
[1765626210822,0.26979141,90433.0,90430.0,0.001]
[1765626211028,0.26979141,90433.0,90428.0,0.01105852]
[1765626211225,0.26979141,90433.0,90430.0,0.001]
[1765626211545,0.26979141,90433.0,90430.0,0.002]
[1765626212308,0.26979141,90433.0,90430.0,0.001]
[1765626213606,0.26979141,90433.0,90430.0,0.002]
[1765626214404,0.2211625,90432.0,90430.0,0.002]
[1765626215016,0.044998,90431.0,90430.0,0.002]
[1765626215191,0.046808,90431.0,90430.0,0.001]
[1765626215594,0.044998,90431.0,90430.0,0.001]
[1765626216134,0.00181,90431.0,90430.0,0.001]
[1765626216332,0.00181,90431.0,90430.0,0.002]
[1765626216937,0.00181,90431.0,90430.0,0.001]
[1765626217303,0.26979141,90433.0,90430.0,0.001]
[1765626217939,0.04863168,90433.0,90430.0,0.01205827]
[1765626219002,0.04863168,90433.0,90430.0,0.01105827]
[1765626220317,0.01105803,90432.0,90428.0,0.01105852]